[Event "*** Titled Tuesday Blitz"]
[Site "Chess.com"]
[Date "2020.11.03"]
[Round "8"]
[White "Piotrek1979"]
[Black "German_Bazeev"]
[Result "1/2-1/2"]
[WhiteElo "2486"]
[BlackElo "2741"]
[TimeControl "180+1"]
[EndTime "11:35:34 PST"]
[Termination "Game drawn by 50-move rule"]

1. Nf3 {[%clk 0:03:00.1]} 1... Nf6 {[%clk 0:02:50.9]} 2. g3 {[%clk 0:03:00.1]}
2... g6 {[%clk 0:02:49.5]} 3. Bg2 {[%clk 0:03:01]} 3... Bg7 {[%clk 0:02:50.4]}
4. O-O {[%clk 0:03:00.8]} 4... O-O {[%clk 0:02:51.3]} 5. c3 {[%clk 0:03:00.5]}
5... d5 {[%clk 0:02:52.2]} 6. d3 {[%clk 0:02:59.2]} 6... c6 {[%clk 0:02:51.6]}
7. Nbd2 {[%clk 0:02:55.4]} 7... Bg4 {[%clk 0:02:50.9]} 8. h3 {[%clk 0:02:54.3]}
8... Bxf3 {[%clk 0:02:50.6]} 9. Nxf3 {[%clk 0:02:51.5]} 9... a5 {[%clk
0:02:48.7]} 10. a4 {[%clk 0:02:50.3]} 10... Nbd7 {[%clk 0:02:45.9]} 11. d4
{[%clk 0:02:23.3]} 11... Ne4 {[%clk 0:02:43.9]} 12. Nd2 {[%clk 0:02:16.8]} 12...
Nxd2 {[%clk 0:02:42.8]} 13. Bxd2 {[%clk 0:02:15.9]} 13... e5 {[%clk 0:02:43.7]}
14. e3 {[%clk 0:02:12]} 14... h5 {[%clk 0:02:40.5]} 15. Qb3 {[%clk 0:02:03.7]}
15... Rb8 {[%clk 0:02:29.5]} 16. c4 {[%clk 0:02:01.7]} 16... dxc4 {[%clk
0:02:16.7]} 17. Qxc4 {[%clk 0:02:02.6]} 17... exd4 {[%clk 0:02:16.9]} 18. exd4
{[%clk 0:01:59.2]} 18... Nb6 {[%clk 0:02:16.9]} 19. Qc5 {[%clk 0:01:59.1]} 19...
Bxd4 {[%clk 0:02:04.5]} 20. Qxa5 {[%clk 0:01:58.6]} 20... Nc4 {[%clk 0:01:59.5]}
21. Qxd8 {[%clk 0:01:50.9]} 21... Rbxd8 {[%clk 0:01:44.4]} 22. Bb4 {[%clk
0:01:46.6]} 22... Rfe8 {[%clk 0:01:41.5]} 23. a5 {[%clk 0:01:41.6]} 23... Nxb2
{[%clk 0:01:35.7]} 24. a6 {[%clk 0:01:39.4]} 24... Nd3 {[%clk 0:01:32.2]} 25.
Ba5 {[%clk 0:01:30.9]} 25... Bxa1 {[%clk 0:01:07.4]} 26. Bxd8 {[%clk 0:01:28.9]}
26... Rxd8 {[%clk 0:01:07.4]} 27. Rxa1 {[%clk 0:01:27.5]} 27... bxa6 {[%clk
0:01:06.8]} 28. Rxa6 {[%clk 0:01:22.8]} 28... c5 {[%clk 0:00:56]} 29. Rc6 {[%clk
0:01:21.2]} 29... Rd4 {[%clk 0:00:53.6]} 30. Rc7 {[%clk 0:00:57.7]} 30... c4
{[%clk 0:00:51.4]} 31. Bb7 {[%clk 0:00:49.9]} 31... Nb4 {[%clk 0:00:49.4]} 32.
Kf1 {[%clk 0:00:46.9]} 32... h4 {[%clk 0:00:45.8]} 33. gxh4 {[%clk 0:00:46.2]}
33... Rxh4 {[%clk 0:00:44]} 34. Ke2 {[%clk 0:00:42.9]} 34... Kf8 {[%clk
0:00:27.9]} 35. Ke3 {[%clk 0:00:42.9]} 35... Rxh3+ {[%clk 0:00:27.2]} 36. f3
{[%clk 0:00:41.8]} 36... Nc2+ {[%clk 0:00:20]} 37. Kd2 {[%clk 0:00:40.3]} 37...
Na3 {[%clk 0:00:19.7]} 38. Bd5 {[%clk 0:00:37.1]} 38... Rh2+ {[%clk 0:00:19.5]}
39. Ke3 {[%clk 0:00:35.2]} 39... f5 {[%clk 0:00:15.7]} 40. Kf4 {[%clk
0:00:33.8]} 40... Rd2 {[%clk 0:00:13.8]} 41. Bxc4 {[%clk 0:00:33.1]} 41... Rd4+
{[%clk 0:00:13.3]} 42. Kg5 {[%clk 0:00:33.3]} 42... Nxc4 {[%clk 0:00:10.5]} 43.
Kxg6 {[%clk 0:00:32.4]} 43... f4 {[%clk 0:00:10.1]} 44. Kf6 {[%clk 0:00:31.5]}
44... Ke8 {[%clk 0:00:09.5]} 45. Kf5 {[%clk 0:00:29.2]} 45... Ne3+ {[%clk
0:00:06.3]} 46. Ke5 {[%clk 0:00:28.9]} 46... Ra4 {[%clk 0:00:06.6]} 47. Rg7
{[%clk 0:00:19.4]} 47... Nc2 {[%clk 0:00:05.8]} 48. Rg4 {[%clk 0:00:18.4]} 48...
Ne1 {[%clk 0:00:06.4]} 49. Rg7 {[%clk 0:00:13.4]} 49... Nxf3+ {[%clk 0:00:05.6]}
50. Kf6 {[%clk 0:00:13.5]} 50... Nd4 {[%clk 0:00:05]} 51. Ke5 {[%clk 0:00:13]}
51... f3 {[%clk 0:00:04.5]} 52. Rg8+ {[%clk 0:00:10.8]} 52... Kf7 {[%clk
0:00:04.7]} 53. Rg5 {[%clk 0:00:10.7]} 53... Ke7 {[%clk 0:00:03.5]} 54. Rg7+
{[%clk 0:00:10.5]} 54... Kf8 {[%clk 0:00:03.9]} 55. Rg1 {[%clk 0:00:10.8]} 55...
Kf7 {[%clk 0:00:04.1]} 56. Rf1 {[%clk 0:00:10.8]} 56... Kg6 {[%clk 0:00:04.5]}
57. Ke4 {[%clk 0:00:11.2]} 57... Kg5 {[%clk 0:00:04.7]} 58. Ke3 {[%clk
0:00:11.6]} 58... Kg4 {[%clk 0:00:05]} 59. Rg1+ {[%clk 0:00:11.7]} 59... Kf5
{[%clk 0:00:05.4]} 60. Rg8 {[%clk 0:00:12.5]} 60... Ke5 {[%clk 0:00:05.1]} 61.
Rg5+ {[%clk 0:00:10.7]} 61... Nf5+ {[%clk 0:00:04.6]} 62. Kxf3 {[%clk
0:00:10.2]} 62... Ra3+ {[%clk 0:00:05.3]} 63. Ke2 {[%clk 0:00:10.3]} 63... Kf4
{[%clk 0:00:06.2]} 64. Rg8 {[%clk 0:00:10]} 64... Ra2+ {[%clk 0:00:06.2]} 65.
Kd3 {[%clk 0:00:10]} 65... Ra3+ {[%clk 0:00:05.8]} 66. Kd2 {[%clk 0:00:09.4]}
66... Ra7 {[%clk 0:00:06.7]} 67. Rf8 {[%clk 0:00:09.4]} 67... Rd7+ {[%clk
0:00:06.6]} 68. Ke2 {[%clk 0:00:08.6]} 68... Re7+ {[%clk 0:00:05.5]} 69. Kd2
{[%clk 0:00:08.7]} 69... Ke4 {[%clk 0:00:06.4]} 70. Kc3 {[%clk 0:00:08.4]} 70...
Rc7+ {[%clk 0:00:06]} 71. Kb4 {[%clk 0:00:06.9]} 71... Ne3 {[%clk 0:00:06.9]}
72. Re8+ {[%clk 0:00:07]} 72... Kd4 {[%clk 0:00:07.2]} 73. Kb5 {[%clk 0:00:07]}
73... Nd5 {[%clk 0:00:08.1]} 74. Rd8 {[%clk 0:00:06.8]} 74... Rc5+ {[%clk
0:00:08.1]} 75. Ka4 {[%clk 0:00:06.6]} 75... Rc1 {[%clk 0:00:07.6]} 76. Ka3
{[%clk 0:00:06.9]} 76... Rb1 {[%clk 0:00:06.8]} 77. Ka2 {[%clk 0:00:06.9]} 77...
Rb7 {[%clk 0:00:07]} 78. Ka3 {[%clk 0:00:07]} 78... Kc5 {[%clk 0:00:05.9]} 79.
Rc8+ {[%clk 0:00:06.7]} 79... Nc7 {[%clk 0:00:05]} 80. Ka2 {[%clk 0:00:06.1]}
80... Kc4 {[%clk 0:00:05.5]} 81. Rh8 {[%clk 0:00:04.8]} 81... Ne6 {[%clk
0:00:04.9]} 82. Rh4+ {[%clk 0:00:04.9]} 82... Nd4 {[%clk 0:00:05.4]} 83. Ka3
{[%clk 0:00:05.2]} 83... Kc3 {[%clk 0:00:04.6]} 84. Rh3+ {[%clk 0:00:04.6]}
84... Kc2 {[%clk 0:00:05.1]} 85. Rh2+ {[%clk 0:00:04.4]} 85... Kd3 {[%clk
0:00:05.7]} 86. Rh3+ {[%clk 0:00:04.6]} 86... Kc4 {[%clk 0:00:06.3]} 87. Rh4
{[%clk 0:00:05.1]} 87... Rb6 {[%clk 0:00:05.8]} 88. Ka2 {[%clk 0:00:05.4]} 88...
Kc3 {[%clk 0:00:04.3]} 89. Rh3+ {[%clk 0:00:05.7]} 89... Kd2 {[%clk 0:00:04.8]}
90. Rh2+ {[%clk 0:00:06]} 90... Ne2 {[%clk 0:00:05.2]} 91. Ka3 {[%clk
0:00:06.6]} 91... Kc3 {[%clk 0:00:04.7]} 92. Ka4 {[%clk 0:00:06.7]} 92... Rb2
{[%clk 0:00:03.5]} 93. Rh3+ {[%clk 0:00:06.5]} 93... Kc4 {[%clk 0:00:03.5]} 94.
Rh4+ {[%clk 0:00:06.9]} 94... Nd4 {[%clk 0:00:03.6]} 95. Ka5 {[%clk 0:00:07.5]}
95... Rb8 {[%clk 0:00:02.7]} 96. Rg4 {[%clk 0:00:07]} 96... Ra8+ {[%clk
0:00:03]} 97. Kb6 {[%clk 0:00:07]} 97... Ra1 {[%clk 0:00:03.9]} 98. Kc7 {[%clk
0:00:06.6]} 98... Kd5 {[%clk 0:00:04]} 99. Rh4 {[%clk 0:00:06.2]} 99... Ne6+
{[%clk 0:00:03.9]} 100. Kd7 {[%clk 0:00:06]} 100... Ra7+ {[%clk 0:00:03.9]} 101.
Kc8 {[%clk 0:00:06.1]} 101... Kd6 {[%clk 0:00:04]} 102. Rh6 {[%clk 0:00:05.2]}
102... Rc7+ {[%clk 0:00:04.2]} 103. Kb8 {[%clk 0:00:05.4]} 103... Rf7 {[%clk
0:00:05.1]} 104. Rg6 {[%clk 0:00:05.3]} 104... Kd5 {[%clk 0:00:04.3]} 105. Kc8
{[%clk 0:00:04.6]} 105... Rh7 {[%clk 0:00:04.3]} 106. Rg1 {[%clk 0:00:03.9]}
106... Kc6 {[%clk 0:00:04.1]} 107. Rc1+ {[%clk 0:00:02.4]} 107... Nc5 {[%clk
0:00:04.7]} 108. Kd8 {[%clk 0:00:02.7]} 108... Rf7 {[%clk 0:00:05]} 109. Ke8
{[%clk 0:00:03.3]} 109... Rf4 {[%clk 0:00:05.3]} 110. Rc2 {[%clk 0:00:03.6]}
110... Kd6 {[%clk 0:00:05.4]} 111. Rd2+ {[%clk 0:00:02.4]} 111... Ke5 {[%clk
0:00:05.2]} 112. Re2+ {[%clk 0:00:02.8]} 1/2-1/2

[Event "*** Titled Tuesday Blitz"]
[Site "Chess.com"]
[Date "2020.11.03"]
[Round "9"]
[White "GM_Huschenbeth"]
[Black "AlexSuv"]
[Result "1-0"]
[WhiteElo "2408"]
[BlackElo "2546"]
[TimeControl "180+1"]
[EndTime "11:43:17 PST"]
[Termination "GM_Huschenbeth won by resignation"]

1. e4 {[%clk 0:03:00.9]} 1... c5 {[%clk 0:02:59.7]} 2. Nf3 {[%clk 0:02:58.8]}
2... e6 {[%clk 0:02:58.2]} 3. d4 {[%clk 0:02:58.7]} 3... cxd4 {[%clk 0:02:59.1]}
4. Nxd4 {[%clk 0:02:59.5]} 4... Nc6 {[%clk 0:02:59.4]} 5. Nc3 {[%clk 0:02:57.3]}
5... Qc7 {[%clk 0:02:59.2]} 6. Be3 {[%clk 0:02:56.8]} 6... a6 {[%clk 0:02:59.5]}
7. Bd3 {[%clk 0:02:56.7]} 7... Nf6 {[%clk 0:02:59.3]} 8. O-O {[%clk 0:02:56.1]}
8... Nxd4 {[%clk 0:02:59.8]} 9. Bxd4 {[%clk 0:02:55.9]} 9... Bc5 {[%clk
0:03:00.6]} 10. Be2 {[%clk 0:02:55.8]} 10... d6 {[%clk 0:02:50.8]} 11. Bxf6
{[%clk 0:02:55.3]} 11... gxf6 {[%clk 0:02:51.7]} 12. Qd2 {[%clk 0:02:55.8]}
12... Bb4 {[%clk 0:02:40.3]} 13. Nd5 {[%clk 0:02:45.2]} 1-0

[Event "*** Titled Tuesday Blitz"]
[Site "Chess.com"]
[Date "2020.11.03"]
[Round "9"]
[White "xberli"]
[Black "InitiatingASC"]
[Result "1-0"]
[WhiteElo "2537"]
[BlackElo "2396"]
[TimeControl "180+1"]
[EndTime "11:44:33 PST"]
[Termination "xberli won by resignation"]

1. e4 {[%clk 0:03:00.9]} 1... c5 {[%clk 0:02:59.2]} 2. Nf3 {[%clk 0:03:00.6]}
2... Nc6 {[%clk 0:02:59.8]} 3. d4 {[%clk 0:03:00.7]} 3... cxd4 {[%clk
0:03:00.7]} 4. Nxd4 {[%clk 0:03:01.2]} 4... Nf6 {[%clk 0:03:00.9]} 5. Nc3 {[%clk
0:03:01.3]} 5... e5 {[%clk 0:03:01.1]} 6. Ndb5 {[%clk 0:03:01.5]} 6... h6 {[%clk
0:03:01.6]} 7. Nd5 {[%clk 0:02:58.2]} 7... Nxd5 {[%clk 0:03:01.1]} 8. exd5
{[%clk 0:02:59.1]} 8... a6 {[%clk 0:03:01.8]} 9. Na3 {[%clk 0:02:53.6]} 9... Nb8
{[%clk 0:03:01.1]} 10. Nc4 {[%clk 0:02:50.8]} 10... d6 {[%clk 0:03:01]} 11. a4
{[%clk 0:02:50.5]} 11... Be7 {[%clk 0:02:59.2]} 12. a5 {[%clk 0:02:49.5]} 12...
O-O {[%clk 0:02:59.2]} 13. Nb6 {[%clk 0:02:47.4]} 13... Ra7 {[%clk 0:02:54.2]}
14. Be3 {[%clk 0:02:46.7]} 14... Bf5 {[%clk 0:02:52.1]} 15. Bd3 {[%clk 0:02:26]}
15... Bxd3 {[%clk 0:02:47.5]} 16. Qxd3 {[%clk 0:02:26.9]} 16... f5 {[%clk
0:02:47.7]} 17. f4 {[%clk 0:02:23.6]} 17... Bf6 {[%clk 0:02:41.1]} 18. O-O
{[%clk 0:02:17.1]} 18... e4 {[%clk 0:02:35.8]} 19. Qa3 {[%clk 0:02:11.8]} 19...
Qc7 {[%clk 0:02:19.4]} 20. c4 {[%clk 0:02:07.6]} 20... Bd8 {[%clk 0:02:10.2]}
21. Rac1 {[%clk 0:02:04.5]} 21... Qe7 {[%clk 0:02:09.9]} 22. Nc8 {[%clk
0:02:01.4]} 1-0

[Event "*** Titled Tuesday Blitz"]
[Site "Chess.com"]
[Date "2020.11.03"]
[Round "9"]
[White "lacafi"]
[Black "Mbneu"]
[Result "0-1"]
[WhiteElo "2085"]
[BlackElo "2211"]
[TimeControl "180+1"]
[EndTime "11:45:15 PST"]
[Termination "Mbneu won by resignation"]

1. d4 {[%clk 0:02:57.9]} 1... Nf6 {[%clk 0:02:58.7]} 2. Nf3 {[%clk 0:02:57.9]}
2... c5 {[%clk 0:02:59.2]} 3. e3 {[%clk 0:02:57.7]} 3... cxd4 {[%clk 0:02:58.5]}
4. exd4 {[%clk 0:02:57.3]} 4... b6 {[%clk 0:02:59]} 5. Bd3 {[%clk 0:02:56.7]}
5... Ba6 {[%clk 0:02:58.8]} 6. O-O {[%clk 0:02:55]} 6... g6 {[%clk 0:02:58.9]}
7. Re1 {[%clk 0:02:54.8]} 7... Bg7 {[%clk 0:02:57.5]} 8. c4 {[%clk 0:02:53.5]}
8... O-O {[%clk 0:02:55.9]} 9. b3 {[%clk 0:02:51.6]} 9... d5 {[%clk 0:02:53.3]}
10. Bb2 {[%clk 0:02:51.5]} 10... dxc4 {[%clk 0:02:52.4]} 11. bxc4 {[%clk
0:02:51.6]} 11... Nc6 {[%clk 0:02:52.4]} 12. d5 {[%clk 0:02:45]} 12... Na5
{[%clk 0:02:50.2]} 13. Nbd2 {[%clk 0:02:36.8]} 13... Rc8 {[%clk 0:02:48]} 14.
Rc1 {[%clk 0:02:36.4]} 14... Nb7 {[%clk 0:02:36.4]} 15. Nd4 {[%clk 0:02:28.9]}
15... Nc5 {[%clk 0:02:26.1]} 16. Nc6 {[%clk 0:01:56.2]} 16... Rxc6 {[%clk
0:02:23]} 17. dxc6 {[%clk 0:01:55.2]} 17... Nxd3 {[%clk 0:02:22.6]} 18. Ba3
{[%clk 0:01:51.8]} 18... Nxe1 {[%clk 0:02:13.5]} 19. Qxe1 {[%clk 0:01:49.3]}
19... Re8 {[%clk 0:02:11.9]} 20. Nf3 {[%clk 0:01:43.1]} 20... Qd3 {[%clk
0:02:04.9]} 21. c7 {[%clk 0:01:31]} 21... Qxa3 {[%clk 0:02:01.2]} 0-1

[Event "*** Titled Tuesday Blitz"]
[Site "Chess.com"]
[Date "2020.11.03"]
[Round "9"]
[White "DenLaz"]
[Black "Zq1"]
[Result "1-0"]
[WhiteElo "2741"]
[BlackElo "2532"]
[TimeControl "180+1"]
[EndTime "11:45:40 PST"]
[Termination "DenLaz won by resignation"]

1. d4 {[%clk 0:02:59.7]} 1... Nf6 {[%clk 0:02:59.2]} 2. c4 {[%clk 0:02:59.1]}
2... a6 {[%clk 0:02:59.5]} 3. Nc3 {[%clk 0:02:56.8]} 3... c5 {[%clk 0:02:59.5]}
4. d5 {[%clk 0:02:56.4]} 4... b5 {[%clk 0:02:59.3]} 5. cxb5 {[%clk 0:02:54.3]}
5... axb5 {[%clk 0:02:59.4]} 6. Nxb5 {[%clk 0:02:49.6]} 6... Qa5+ {[%clk
0:02:59]} 7. Nc3 {[%clk 0:02:49.8]} 7... Bb7 {[%clk 0:02:59.2]} 8. Bd2 {[%clk
0:02:37.3]} 8... Qb6 {[%clk 0:02:58.2]} 9. e4 {[%clk 0:02:37]} 9... e6 {[%clk
0:02:57.2]} 10. dxe6 {[%clk 0:02:35.3]} 10... fxe6 {[%clk 0:02:56.5]} 11. e5
{[%clk 0:02:35.7]} 11... Ne4 {[%clk 0:02:48.3]} 12. Bd3 {[%clk 0:02:30.5]} 12...
Nxd2 {[%clk 0:02:42.5]} 13. Qxd2 {[%clk 0:02:10.9]} 13... Bxg2 {[%clk
0:02:39.8]} 14. Be4 {[%clk 0:02:10]} 14... Bxh1 {[%clk 0:02:32.9]} 15. Bxh1
{[%clk 0:02:09.8]} 15... Nc6 {[%clk 0:02:33.1]} 16. O-O-O {[%clk 0:02:08.3]}
16... Ra7 {[%clk 0:02:23.5]} 17. Be4 {[%clk 0:01:57.1]} 17... Be7 {[%clk
0:02:18.5]} 18. Nf3 {[%clk 0:01:57.3]} 18... O-O {[%clk 0:02:13.7]} 19. Rg1
{[%clk 0:01:57.2]} 19... Nd4 {[%clk 0:01:54.4]} 20. Qh6 {[%clk 0:01:47]} 20...
Kf7 {[%clk 0:01:28]} 21. Qh5+ {[%clk 0:01:39.2]} 1-0

[Event "*** Titled Tuesday Blitz"]
[Site "Chess.com"]
[Date "2020.11.03"]
[Round "9"]
[White "Chessdreamer2020"]
[Black "Godzillator"]
[Result "1-0"]
[WhiteElo "2513"]
[BlackElo "2333"]
[TimeControl "180+1"]
[EndTime "11:46:04 PST"]
[Termination "Chessdreamer2020 won by resignation"]

1. e4 {[%clk 0:03:00.9]} 1... c6 {[%clk 0:02:34.5]} 2. Nc3 {[%clk 0:02:59.8]}
2... d5 {[%clk 0:02:35.1]} 3. Nf3 {[%clk 0:03:00.2]} 3... Bg4 {[%clk 0:02:35.2]}
4. h3 {[%clk 0:03:00.1]} 4... Bxf3 {[%clk 0:02:35.9]} 5. Qxf3 {[%clk 0:02:59.7]}
5... Nf6 {[%clk 0:02:36.6]} 6. d3 {[%clk 0:03:00]} 6... e6 {[%clk 0:02:36.9]} 7.
g3 {[%clk 0:03:00.3]} 7... Bb4 {[%clk 0:02:36.8]} 8. Bd2 {[%clk 0:02:59.1]} 8...
d4 {[%clk 0:02:33.3]} 9. Nb1 {[%clk 0:02:58.8]} 9... Qb6 {[%clk 0:02:33.5]} 10.
b3 {[%clk 0:02:56.2]} 10... Qc5 {[%clk 0:02:32.1]} 11. Qd1 {[%clk 0:02:54.2]}
11... e5 {[%clk 0:02:28.1]} 12. Bg2 {[%clk 0:02:54]} 12... Nbd7 {[%clk
0:02:27.3]} 13. O-O {[%clk 0:02:53.9]} 13... Bxd2 {[%clk 0:02:27]} 14. Nxd2
{[%clk 0:02:53.4]} 14... O-O {[%clk 0:02:26.9]} 15. f4 {[%clk 0:02:52]} 15...
Ne8 {[%clk 0:02:26.9]} 16. Nf3 {[%clk 0:02:47.7]} 16... f6 {[%clk 0:02:26.1]}
17. h4 {[%clk 0:02:47.4]} 17... Qd6 {[%clk 0:02:22]} 18. Qd2 {[%clk 0:02:43.4]}
18... c5 {[%clk 0:02:21.5]} 19. a4 {[%clk 0:02:42.1]} 19... Nc7 {[%clk
0:02:20.9]} 20. Bh3 {[%clk 0:02:41.6]} 20... Ne6 {[%clk 0:02:20.2]} 21. Bxe6+
{[%clk 0:02:34.4]} 21... Qxe6 {[%clk 0:02:20.1]} 22. f5 {[%clk 0:02:34.8]} 22...
Qc6 {[%clk 0:02:17.3]} 23. g4 {[%clk 0:02:35.2]} 23... a6 {[%clk 0:02:17.2]} 24.
a5 {[%clk 0:02:33.6]} 24... Rf7 {[%clk 0:02:08.6]} 25. Kh2 {[%clk 0:02:33.3]}
25... Kf8 {[%clk 0:02:08.6]} 26. g5 {[%clk 0:02:32.6]} 26... Ke7 {[%clk
0:02:08.2]} 27. Rg1 {[%clk 0:02:32.4]} 27... Nf8 {[%clk 0:02:03.9]} 28. Rg2
{[%clk 0:02:29.6]} 28... Qc7 {[%clk 0:02:01.9]} 29. gxf6+ {[%clk 0:02:26.6]}
29... gxf6 {[%clk 0:02:01.5]} 30. Rag1 {[%clk 0:02:25.1]} 30... Re8 {[%clk
0:01:59.2]} 31. Rg8 {[%clk 0:02:24.2]} 31... Kd8 {[%clk 0:01:57.5]} 32. Rh8
{[%clk 0:02:19.5]} 32... Nd7 {[%clk 0:01:50.6]} 33. Rgg8 {[%clk 0:02:17.7]}
33... Rff8 {[%clk 0:01:43.7]} 34. Rxf8 {[%clk 0:02:15.9]} 34... Nxf8 {[%clk
0:01:43.8]} 35. Qh6 {[%clk 0:02:12.8]} 35... Qf7 {[%clk 0:01:37.7]} 36. Kh3
{[%clk 0:02:01.5]} 36... Ke7 {[%clk 0:01:32.1]} 37. Nh2 {[%clk 0:02:00.9]} 37...
Nd7 {[%clk 0:01:27.1]} 38. Rxh7 {[%clk 0:02:00.2]} 1-0

[Event "*** Titled Tuesday Blitz"]
[Site "Chess.com"]
[Date "2020.11.03"]
[Round "9"]
[White "ural58"]
[Black "BlackBoarder"]
[Result "0-1"]
[WhiteElo "2355"]
[BlackElo "2529"]
[TimeControl "180+1"]
[EndTime "11:46:07 PST"]
[Termination "BlackBoarder won by resignation"]

1. e4 {[%clk 0:03:00.9]} 1... e6 {[%clk 0:02:56.6]} 2. Qe2 {[%clk 0:02:53.8]}
2... c5 {[%clk 0:02:49.1]} 3. b3 {[%clk 0:02:53.1]} 3... a5 {[%clk 0:02:41.8]}
4. Nc3 {[%clk 0:02:51.8]} 4... Nc6 {[%clk 0:02:40.2]} 5. Bb2 {[%clk 0:02:51]}
5... b6 {[%clk 0:02:38]} 6. f4 {[%clk 0:02:49.8]} 6... Ba6 {[%clk 0:02:37.8]} 7.
Qf2 {[%clk 0:02:44.2]} 7... Bxf1 {[%clk 0:02:32.5]} 8. Qxf1 {[%clk 0:02:43.4]}
8... d5 {[%clk 0:02:32.3]} 9. exd5 {[%clk 0:02:37.5]} 9... exd5 {[%clk
0:02:31.6]} 10. O-O-O {[%clk 0:02:38.4]} 10... Nf6 {[%clk 0:02:30.4]} 11. g4
{[%clk 0:02:27.9]} 11... d4 {[%clk 0:02:27.9]} 12. Qf3 {[%clk 0:01:40.7]} 12...
Rc8 {[%clk 0:02:11.7]} 13. Ne4 {[%clk 0:01:30.8]} 13... Be7 {[%clk 0:01:56.2]}
14. Nxf6+ {[%clk 0:01:29.3]} 14... Bxf6 {[%clk 0:01:57.1]} 15. Re1+ {[%clk
0:01:26.6]} 15... Be7 {[%clk 0:01:51.5]} 16. h4 {[%clk 0:01:16.3]} 16... O-O
{[%clk 0:01:50.6]} 17. h5 {[%clk 0:01:16.3]} 17... Re8 {[%clk 0:01:42.5]} 18. h6
{[%clk 0:01:15.4]} 18... Bf8 {[%clk 0:01:26.3]} 19. hxg7 {[%clk 0:01:14.1]}
19... Rxe1+ {[%clk 0:01:25.7]} 0-1

[Event "*** Titled Tuesday Blitz"]
[Site "Chess.com"]
[Date "2020.11.03"]
[Round "9"]
[White "Aygehovit1992"]
[Black "infinitegiantkiller"]
[Result "1-0"]
[WhiteElo "2647"]
[BlackElo "2471"]
[TimeControl "180+1"]
[EndTime "11:46:30 PST"]
[Termination "Aygehovit1992 won by checkmate"]

1. e4 {[%clk 0:03:00.9]} 1... e6 {[%clk 0:03:00.9]} 2. d4 {[%clk 0:03:00.2]}
2... d5 {[%clk 0:02:55.7]} 3. Nc3 {[%clk 0:03:00.3]} 3... Nf6 {[%clk 0:02:55.6]}
4. e5 {[%clk 0:02:59.8]} 4... Nfd7 {[%clk 0:02:56]} 5. f4 {[%clk 0:02:59.9]}
5... c5 {[%clk 0:02:56.5]} 6. Nf3 {[%clk 0:03:00.8]} 6... Nc6 {[%clk 0:02:57]}
7. Be3 {[%clk 0:03:01]} 7... a6 {[%clk 0:02:57.4]} 8. Qd2 {[%clk 0:03:00.6]}
8... b5 {[%clk 0:02:57.5]} 9. a3 {[%clk 0:03:00]} 9... Qb6 {[%clk 0:02:57.3]}
10. dxc5 {[%clk 0:02:32]} 10... Bxc5 {[%clk 0:02:58.2]} 11. Bxc5 {[%clk
0:02:29.3]} 11... Nxc5 {[%clk 0:02:59.1]} 12. Qf2 {[%clk 0:02:27]} 12... O-O
{[%clk 0:02:51.5]} 13. Bd3 {[%clk 0:02:21.1]} 13... Nxd3+ {[%clk 0:02:28.2]} 14.
cxd3 {[%clk 0:02:22]} 14... Qxf2+ {[%clk 0:02:24.9]} 15. Kxf2 {[%clk 0:02:22.9]}
15... b4 {[%clk 0:02:25.6]} 16. Na4 {[%clk 0:02:12]} 16... a5 {[%clk 0:02:20.9]}
17. Rhc1 {[%clk 0:02:10.3]} 17... Na7 {[%clk 0:01:48.2]} 18. Nd4 {[%clk
0:02:06.8]} 18... Bd7 {[%clk 0:01:42.6]} 19. Nb6 {[%clk 0:02:05.6]} 19... Rad8
{[%clk 0:01:35.8]} 20. axb4 {[%clk 0:02:00.3]} 20... Nb5 {[%clk 0:01:32.9]} 21.
Nxd7 {[%clk 0:01:58.1]} 21... Nxd4 {[%clk 0:01:30.3]} 22. Nxf8 {[%clk
0:01:57.9]} 22... Nb3 {[%clk 0:01:30.3]} 23. Nxe6 {[%clk 0:01:55.5]} 23... fxe6
{[%clk 0:01:29.3]} 24. bxa5 {[%clk 0:01:55.8]} 24... Nxc1 {[%clk 0:01:27.3]} 25.
Rxc1 {[%clk 0:01:55.2]} 25... Rb8 {[%clk 0:01:28.2]} 26. Rb1 {[%clk 0:01:49.5]}
26... Rb3 {[%clk 0:01:27.7]} 27. Ke3 {[%clk 0:01:49.5]} 27... Kf7 {[%clk
0:01:26.7]} 28. a6 {[%clk 0:01:49.6]} 28... Rb6 {[%clk 0:01:25.8]} 29. Ra1
{[%clk 0:01:49.8]} 29... Rxb2 {[%clk 0:01:23.8]} 30. a7 {[%clk 0:01:49.7]} 30...
Rxg2 {[%clk 0:01:20.9]} 31. a8=Q {[%clk 0:01:49.1]} 31... Rxh2 {[%clk
0:01:19.6]} 32. Ra7+ {[%clk 0:01:48.5]} 32... Kg6 {[%clk 0:01:19.3]} 33. Qe8+
{[%clk 0:01:48.8]} 33... Kh6 {[%clk 0:01:19.4]} 34. Qxe6+ {[%clk 0:01:48.1]}
34... g6 {[%clk 0:01:19.7]} 35. Qg8 {[%clk 0:01:39.5]} 35... Rh3+ {[%clk
0:01:18.7]} 36. Kd4 {[%clk 0:01:38.2]} 36... Kh5 {[%clk 0:01:19.6]} 37. Rxh7+
{[%clk 0:01:36.7]} 37... Kg4 {[%clk 0:01:20.5]} 38. Qxg6+ {[%clk 0:01:37.2]}
38... Kf3 {[%clk 0:01:21.4]} 39. Rxh3+ {[%clk 0:01:37]} 39... Ke2 {[%clk
0:01:22.1]} 40. Qg2+ {[%clk 0:01:36.7]} 40... Kd1 {[%clk 0:01:23]} 41. Rh1#
{[%clk 0:01:37.6]} 1-0